Cogmind - Beta 10 @@@ ROGUE MODE // 2020.09.19 @ 22:42:44 Player: DragoX Result: Destroyed by G-34 Mercenary with Small Laser Performance ------------- Evolutions (0) 0 Regions Visited (1) 200 Robots Destroyed (7) 35 Value Destroyed (132) 132 Prototype IDs (0) 0 Alien Tech Used (0) 0 Bonus (0) 0 TOTAL SCORE: 367 Bonus ------- None Cogmind --------- Core Integrity 0/250 Matter 245/300 Energy 100/100 System Corruption 11% Temperature Cool (6) Movement Rolling (80) Location -10/Materials Parts ------- > --- POWER (1) -------- (None) > --- PROPULSION (2) --- Aluminum Leg Wheel > --- UTILITY (2) ------ (None) > --- WEAPON (2) ------- Grenade Launcher > --- INVENTORY (4) ---- Wheel Peak State ------------ > --- POWER ------------ Light Ion Engine > --- PROPULSION ------- Aluminum Leg Aluminum Leg > --- UTILITY ---------- (None) > --- WEAPON ----------- Small Laser Small Laser > --- INVENTORY -------- Wheel Wheel [Rating: 5] Favorites ----------- Power Light Ion Engine Engine Light Ion Engine Propulsion Aluminum Leg Leg Aluminum Leg Wheel Wheel Utility None Weapon Mining Laser Energy Gun Small Laser Ballistic Gun Light Assault Rifle Launcher Grenade Launcher Special Weapon Mining Laser Build | -11 -10 ------- Run | Scr Mat Slots Evolved . | . . Power . | . . Propulsion . | . . Utility . | . . Weapon . | . . Parts Attached 11 | 5 6 Power 1 | 1 . Engine 1 | 1 . Core . | . . Reactor . | . . Propulsion 3 | 2 1 Treads . | . . Leg 2 | 2 . Wheel 1 | . 1 Hover . | . . Flight . | . . Utility . | . . Device . | . . Storage . | . . Processor . | . . Hackware . | . . Protection . | . . Artifact . | . . Weapon 7 | 2 5 Energy Gun 3 | 2 1 Energy Cannon . | . . Ballistic Gun 2 | . 2 Ballistic Cannon . | . . Launcher 1 | . 1 Special Weapon 1 | . 1 Impact Weapon . | . . Slashing Weapon . | . . Piercing Weapon . | . . Special Melee Weapon . | . . Unidentified Prototypes . | . . Parts Lost 5 | . 5 Power 1 | . 1 Propulsion 1 | . 1 Utility . | . . Weapon 3 | . 3 Highest Loss Streak 4 | . 4 Average Slot Usage (%) 60 | . 60 Engine 12 | . 12 Leg 26 | . 26 Energy Gun 5 | . 5 Ballistic Gun 2 | . 2 Special Weapon 11 | . 11 Naked Turns . | . . Heaviest Build 5 | 5 5 Greatest Support 20 | 20 20 Greatest Overweight (x) . | . . Average Overweight (x) . | . . Largest Inventory Capacity 4 | 4 4 Average Capacity 4 | 4 4 Most Carried 4 | 4 4 Average Carried 3 | 2 3 Final Capacity 4 | 4 4 Final Carried 3 | 3 1 Class Distribution -------------------- 100% | Mutant Dominant Class ---------------- Mutant | -10/Materials Resources | -11 -10 ----------- Run | Scr Mat Matter Collected 280 | 241 39 Remotely . | . . Salvage Created 84 | 30 54 Parts 7 | . 7 Haulers Intercepted . | . . Recyclers Shooed . | . . Parts Field Recycled . | . . Retrieved Matter . | . . Parts Self-Destructed . | . . Prevented . | . . Kills | -11 -10 ------- Run | Scr Mat Combat Hostiles Destroyed 3 | 1 2 Guns 1 | 1 . Cannons 1 | . 1 AOE 1 | . 1 Classes Destroyed 2 | 1 1 Builder 4 | . 4 Grunt 3 | 1 2 Best Kill Streak 5 | 1 5 Combat Bots Only 1 | 1 1 Max Kills in Single Turn 1 | 1 1 Gunslinging . | . . Exploded 1 | . 1 Melee . | . . Uniques/NPCs Destroyed . | . . Combat | -11 -10 -------- Run | Scr Mat Damage Taken 713 | 44 669 Core 250 | . 250 Absorbed by Shields . | . . Core Remaining (%) 100 | 100 . Volleys Fired 37 | 3 34 Largest 2 | 2 2 Hottest 120 | 80 120 Shots Fired 43 | 6 37 Gun 18 | 6 12 Cannon . | . . Launcher 3 | . 3 Special 22 | . 22 Kinetic 12 | . 12 Thermal 28 | 6 22 Explosive 3 | . 3 Electromagnetic . | . . Robot Hit Streak 8 | 4 8 Robot Miss Streak 4 | 1 4 Penetration Max . | . . Secondary Targets . | . . Shots Hit Robots 20 | 5 15 Core Hits 13 | 2 11 Critical Hits . | . . Critical Kills . | . . Critical Parts Destroyed . | . . Melee Attacks . | . . Impact . | . . Slashing . | . . Piercing . | . . Sneak Attacks . | . . Combat Hostiles . | . . Follow-up Attacks . | . . Damage Inflicted 474 | 66 408 Guns 137 | 66 71 Cannons . | . . Explosions 145 | . 145 Melee . | . . Ramming . | . . Kinetic 71 | . 71 Thermal 258 | 66 192 Explosive 145 | . 145 Electromagnetic . | . . Impact . | . . Slashing . | . . Piercing . | . . Highest Corruption 11 | . 11 Average Corruption 11 | . 11 Corruption Purged . | . . Effects 4 | . 4 Matter Fused 1 | . 1 Data Loss (major) 1 | . 1 Targeting Errors 2 | . 2 Overload Shots . | . . Overflow Damage 10 | . 10 Projectiles . | . . Explosions 10 | . 10 Melee . | . . Knockbacks . | . . Impact . | . . Kinetic . | . . Secondary . | . . Self-Inflicted Damage 7 | . 7 Shots 1 | . 1 Rammed . | . . Targets Rammed . | . . Kicked . | . . Crushed . | . . Highest Temperature 266 | 78 266 Average Temperature 76 | 42 79 Received Heat Transfer 138 | 24 114 Siege Activations . | . . Robots Corrupted . | . . Combat Hostiles . | . . Parts Fried . | . . Impact Corruptions . | . . Robots Melted . | . . Combat Hostiles . | . . Parts Melted 1 | 1 . Heat Transferred 550 | 150 400 Parts Sabotaged . | . . Parts Stolen . | . . Parts Stripped . | . . Power Chain Reactions . | . . Missiles Intercepted . | . . Alert | -11 -10 ------- Run | Scr Mat Peak Influence 88 | 20 88 Initial 13 | . 13 Average 35 | 2 43 Maximum Alert Level . | . . Low Security (%) 100 | 100 100 Level 1 . | . . Level 2 . | . . Level 3 . | . . Level 4 . | . . Level 5 . | . . High Security . | . . Max Security . | . . Squads Dispatched 4 | . 4 Investigation 1 | . 1 Extermination . | . . Reinforcement 3 | . 3 Assault . | . . Garrison . | . . Intercept . | . . Construction Impeded . | . . Haulers Reinforced . | . . Stealth | -11 -10 --------- Run | Scr Mat Distress Signals 1 | . 1 Communications Jammed . | . . Distress Signals . | . . Times Spotted 10 | 1 9 Peak Tracking Total 2 | 1 2 Tactical Retreats . | . . Traps | -11 -10 ------- Run | Scr Mat Traps Triggered 1 | . 1 Indirectly . | . . Trap Hack Attempts . | . . Triggered . | . . Disarmed . | . . Reprogrammed . | . . Reused . | . . Traps Extracted . | . . Installed . | . . Triggered . | . . Machines | -11 -10 ---------- Run | Scr Mat Machines Disabled 1 | . 1 Max in Single Turn 1 | . 1 Machines Sabotaged . | . . Garrisons Compromised . | . . Overloaded Fab Kills . | . . Fab Network Shutdowns . | . . Hacking | -11 -10 --------- Run | Scr Mat Machines Accessed 1 | . 1 Terminals 1 | . 1 Fabricators . | . . Repair Stations . | . . Recycling Units . | . . Scanalyzers . | . . Garrison Access . | . . Total Hacks 3 | . 3 Successful . | . . Failed 3 | . 3 Catastrophic 1 | . 1 Database Lockouts . | . . Manual 3 | . 3 Terminals 3 | . 3 Fabricators . | . . Repair Stations . | . . Recycling Units . | . . Scanalyzers . | . . Garrison Access . | . . Terminal Hacks . | . . Fabricator Hacks . | . . Repair Station Hacks . | . . Recycling Unit Hacks . | . . Scanalyzer . | . . Garrison Access Hacks . | . . Unauthorized Hacks . | . . Terminals . | . . Fabricators . | . . Repair Stations . | . . Recycling Units . | . . Scanalyzers . | . . Garrison Access . | . . Data Cores Recovered . | . . Used . | . . Hacking Detections 1 | . 1 Full Trace Events 1 | . 1 Feedback Events . | . . Feedback Blocked . | . . Robot Schematics Acquired . | . . Robots Built . | . . Matter . | . . Time . | . . Total Robot Build Rating . | . . Part Schematics Acquired . | . . Parts Built . | . . Matter . | . . Time . | . . Total Part Build Rating . | . . Parts Repaired . | . . Time . | . . Parts Recycled . | . . Recycled Matter . | . . Retrieved Matter . | . . Retrieved Components . | . . Parts Scanalyzed . | . . Part Schematics Acquired . | . . Parts Damaged . | . . Bothacking | -11 -10 ------------ Run | Scr Mat Used RIF Installer . | . . Robots Hacked . | . . Non-combat . | . . Combat . | . . Robot Hacks Applied . | . . Relay Couplers Released . | . . Robots Rewired . | . . Allies Hacked . | . . Hacks Repelled . | . . Allies | -11 -10 -------- Run | Scr Mat Total Allies . | . . Largest Group . | . . Highest-Rated Group . | . . Highest-Rated Ally . | . . Total Orders . | . . Ally Attacks . | . . Total Damage . | . . Kills . | . . Allies Corrupted . | . . Allies Melted . | . . Intel | -11 -10 ------- Run | Scr Mat Robot Analysis Total . | . . Derelict Logs Recovered . | . . Drone Launches . | . . Drone Recoveries . | . . Exploration | -11 -10 ------------- Run | Scr Mat Turns Passed 494 | 98 396 Spaces Moved 220 | 76 144 Core 20 | 20 . Treads . | . . Legs 182 | 56 126 Wheels 18 | . 18 Hover . | . . Flight . | . . Fastest Speed 50 | 50 80 Average Speed 110 | 101 115 Slowest Speed 120 | 120 120 Overloaded Moves . | . . Propulsion Burnouts . | . . Robots Hopped . | . . Cave-ins Triggered 2 | . 2 Exploration Rate (%) 16 | 5 27 Regions Visited 1 Branch Regions . Pre-discovered Areas . | . . Known Exits Taken . | . . Unknown Exits Taken 1 | 1 . Scrap Searched . | . . Spaces Dug 7 | . 7 Terrain Destroyed 29 | . 29 Melee . | . . Projectile 11 | . 11 AOE 18 | . 18 Terrain Rammed . | . . Walls Destroyed . | . . Machines Disabled . | . . Actions | -11 -10 --------- Run | Scr Mat Total 387 | 91 296 Wait 109 | . 109 Move 219 | 75 144 Hop . | . . Pick Up 10 | 8 2 Fast Attach . | . . Attach 9 | 5 4 Detach . | . . Swap 2 | . 2 Drop 1 | . 1 Fire 37 | 3 34 Melee . | . . Ram . | . . Kick . | . . Crush . | . . Escape Stasis . | . . Rewire . | . . Trap . | . . Miscellaneous . | . . Route ------- -11/Scrapyard -10/Materials (discovered 1 exit: [*Mat]) History --------- Turn | Location | Event 2 | -11/Scrapyard | Met Revision 17 74 | -11/Scrapyard | Discovered new exit (range 8) 99 | -11/Scrapyard | Entered Materials 314 | -10/Materials | Build established: Mutant 440 | -10/Materials | Crushed by falling debris 440 | -10/Materials | Core integrity fell below 50% 440 | -10/Materials | Core integrity fell below 20% 440 | -10/Materials | System corruption reached 10% 450 | -10/Materials | Crushed by falling debris 485 | -10/Materials | Discovered new exit (range 16) 495 | -10/Materials | Destroyed by G-34 Mercenary with Small Laser Last Messages --------------- 00450_ 8 Matter crushed. 00459_ System corrupted: Matter fused (-6). When the line of fire is red, you are attempting to shoot through an object at another target, which incurs significant penalties. 00464_ U-05 Engineer destroyed. 00470_ Lgt. Assault Rifle destroyed. Different forms of propulsion may not be used simultaneously, Aluminum Leg automatically deactivated. 00473_ G-34 Mercenary destroyed. 00473_ Electrolysis Chamber disabled. 00475_ Acquired 2 matter. 00476_ System corrupted: Substantial component data lost. 00477_ Acquired 1 matter. 00485_ EXIT=FOUND 00487_ K-01 Serf collects debris. 00491_ The unstable cave ceiling collapses. 00492_ K-01 Serf collects debris. 00494_ System corrupted: Grenade Launcher targeting data glitched. 00494_ Destroyed Hover Unit. [Achievement: First Step to Greatness] Map ----- +----------------------------------------------------+ | ????????? #??????????? | | ?????????########## ########### #??????????? | | ??????????????????# ###????????## #??????????? | | ??????????????????# ????????????# #??????????? | | ??????????????????# ?????######## #??????????? | | ??????????????????# ?????# #??????????? | | ??????????????????# ?????# #??????????? | | ??????????????????# ?????# #??????????? | | ??????????????????# ?????# ##+#######??????????? | | ??????????????????# ?????# # #????????????? | | ?????????????????? ??????# # !% #????????????? | | ??????????????????? ??????# # ! #????????????? | | ???????????????????????????# #! #????????????? | | ??????????????????#????????# % #????????????? | | ??????????????????+ ???????# " #????????????? | | ??????????????????# ???????# ! "" #????????????? | | ?????????????????## ??????# # "" #????????????? | | ?????????????##### ??????# # [#????????????? | | ?????????????? ?????# #== #????????????? | | ???????????????" ######k#!" " #????????????? | | ???????????????"" # #u# "T" #????????????? | | ????????????????? o #!""" #????????????? | | ??????????????????# ########????????????? | | ??????????????????+ T ####????????????????? | | ??????????????????# g ! #?##????????????????? | | ??????????????????## g @ #???????????????????? | | ???????????????????# ## ##???????????????????? | | ????????????????????????# #????????????????????? | | ????????????????????????# #????????????????????? | | ????????????????????????# #????????????????????? | | ????????????????????????# #????????????????????? | | ????????????????????????# #????????????????????? | | ????????????????????????# #????????????????????? | | ????????????????????????# #????????????????????? | | ????????????????????????# < #????????????????????? | | ????????????????????????# #????????????????????? | | ????????????????????????#####????????????????????? | | ?????????????????????????????????????????????????? | | ?????????????????????????????????????????????????? | | ?????????????????????????????????????????????????? | | ?????????????????????????????????????????????????? | | | | | | | | | | | | | | | | | | | +----------------------------------------------------+ Best States ------------- Heat Dissipation 25 Energy Generation 10 Energy Capacity 125 Matter Stores 300 Matter Capacity 300 Sight Range 16 Terrain Scan Density 10 Evasion (%) 50 Item Schematics ----------------- None Robot Schematics ------------------ None Fabricated ------------ Nothing Alien Tech Used ----------------- None Achievements -------------- First Step to Greatness System Compromised Uninvited Guest Unlikely Earthworm Challenges ------------ None Game ------ Seed ThermalDroneChronowheel Manual? 0 Play Time 00:12:33 Cumulative 0.3 hours Start 2020.09.19 @ 22:28:02 End 2020.09.19 @ 22:42:44 Sessions 1 Manual Loads 0 Difficulty Rogue Special Mode None Game No. 1 Rogue 1 Adventurer 0 Explorer 0 Win Type - Total 0 Types 0/0/0/0/0/0/0/0/0 Lore% 0 Gallery% 0 Achievement% 1 Wizard Run 0 Options --------- ASCII 0 Keyboard 0 Movement Mouse Keybinds 0 Fullscreen 1 Font 18/Cog Map View 76x50 Tactical HUD 1 Map Filters NONE Filters NONE Steam 0 RUN: 3dbbce7e-4158-4958-b4cf-c26772234064